lending/lending_fUSD_20240401
["ID","MTS","AMOUNT","RATE_DAILY","PERIOD"]
[321213700,1711985444015,-1122.82,0.0004846,2]
[321213701,1711985444024,-387.18093692,0.00048642,2]
[321213702,1711985444034,-167.36150296,0.00048643,2]
[321213703,1711985444043,-5277.57637587,0.0004874,2]
[321213705,1711985444052,-750.0,0.00049,3]
[321213707,1711985444061,-171.19093951,0.00049315,60]
[321213709,1711985444077,-328.80906049,0.00049315,60]
[321213711,1711985444086,-500.0,0.00049315,4]
[321213713,1711985444095,-500.0,0.00049315,4]
[321213715,1711985444104,-500.0,0.00049315,4]
[321213717,1711985444113,-500.0,0.00049315,4]
[321213719,1711985444122,-1074.64093951,0.00049315,120]
[321213721,1711985444134,-393.24214755,0.00049315,120]
[321213722,1711985444145,-327.38971566,0.00049315,120]
[321213724,1711985444160,-530.89,0.00049315,120]
[321213728,1711985444188,-130.7645686,0.00049315,120]
[321213730,1711985444198,-1000.0,0.00049315,60]
[321213731,1711985444206,-150.0,0.00049315,30]
[321213734,1711985444215,-167.36150296,0.00049519,2]
[321213737,1711985444224,-154.64,0.00049716,120]
[321213739,1711985444233,-8944.08020182,0.000498,60]
[321213758,1711985444515,-2446.08988676,0.00042365,14]
[321213759,1711985444525,-1961.48054615,0.000498,60]
[321213760,1711985444544,-281.38669828,0.000498,60]
[321213761,1711985444553,-1528.29365939,0.00049845,120]
[321213762,1711985444565,-2139.07634061,0.00049845,120]
[321213763,1711985444574,-500.0,0.00049863,60]
[321213764,1711985444584,-1000.0,0.00049927,120]
[321213765,1711985444593,-27070.10563861,0.0005,4]
[321213766,1711985444602,-429.25645594,0.0005,28]
[321213767,1711985444611,-1600.0,0.0005,12]
[321213768,1711985444620,-209.98169655,0.0005,10]
[321213769,1711985444630,-1000.0,0.00050136,64]
[321213770,1711985444639,-222.36,0.00050347,120]
[321213771,1711985444653,-72.40773506,0.00050395,2]
[321213772,1711985444669,-94.9537679,0.00050395,2]
[321213773,1711985444678,-547.27359164,0.00050442,2]
[321213774,1711985444690,-7884.48545545,0.00050442,2]
[321213775,1711985444699,-151.89,0.00050448,30]
[321213776,1711985444708,-151.6895639,0.00050583,14]
[321213777,1711985444718,-1122.82,0.00050724,2]
[321213778,1711985444726,-5277.57637587,0.00050752,2]
[321213779,1711985444736,-1000.0,0.00050958,68]
[321213780,1711985444745,-800.0,0.00051,3]
[321213781,1711985444754,-1200.0,0.00051,52]
[321213782,1711985444763,-167.36150296,0.00051272,2]
[321213783,1711985444772,-1403.51,0.00051338,120]
[321213784,1711985444781,-387.18093692,0.00051649,2]
[321213785,1711985444791,-1000.0,0.0005178,72]
[321213786,1711985444800,-152.74,0.00051976,2]
[321213787,1711985444810,-150.0,0.00052,2]
[321213788,1711985444819,-14299.717594,0.00052,120]
[321213789,1711985444828,-1290.57855156,0.00052,2]
[321213790,1711985444837,-150.0,0.00052,2]
[321213791,1711985444846,-150.0,0.00052003,30]
[321213792,1711985444856,-314.065234,0.00052028,86]
[321213793,1711985444865,-187.047761,0.00052038,87]
[321213794,1711985444874,-157.032617,0.00052048,88]
[321213795,1711985444883,-167.36150296,0.00052148,2]
[321213796,1711985444892,-2344.6939665,0.00052523,4]
[321213797,1711985444904,-2344.69396651,0.00052523,4]
[321213798,1711985444913,-8431.75904709,0.00052531,2]
[321213799,1711985444922,-646.06215,0.00052592,30]
[321213800,1711985444931,-1000.0,0.00052602,120]
[321213801,1711985444941,-5277.57637587,0.00052764,2]
[321213802,1711985444950,-685.66989825,0.0005288,11]
[321213803,1711985444960,-1122.82,0.00052988,2]
[321213804,1711985444969,-850.0,0.00053,3]
[321213805,1711985444979,-167.36150296,0.00053024,2]
[321213806,1711985444991,-222.36,0.00053087,120]
[321213807,1711985445000,-151.6895639,0.00053322,14]
[321213808,1711985445011,-1000.0,0.00053424,120]
[321213809,1711985445020,-221.15,0.00053425,120]
[321213810,1711985445029,-387.24623827,0.0005375,30]
[321213811,1711985445039,-1200.0,0.000539,19]
[321213812,1711985445048,-152.87943552,0.000539,59]
[321213813,1711985445058,-167.36150296,0.000539,2]
[321213814,1711985445068,-221.15,0.00053918,120]
[321213815,1711985445077,-377.16979952,0.00053989,2]
[321213816,1711985445086,-462.21,0.00053999,120]
[321213817,1711985445096,-494.43,0.00053999,120]
[321213818,1711985445105,-423.29,0.00053999,120]
[321213819,1711985445114,-500.0,0.00053999,120]
[321213820,1711985445124,-500.0,0.00053999,120]
[321213821,1711985445133,-500.0,0.00053999,120]
[321213822,1711985445142,-500.0,0.00053999,120]
[321213823,1711985445155,-500.0,0.00053999,120]
[321213824,1711985445164,-525.99,0.00053999,120]
[321213825,1711985445173,-500.0,0.00053999,120]
[321213826,1711985445182,-500.0,0.00053999,120]
[321213827,1711985445191,-500.0,0.00053999,120]
[321213828,1711985445200,-500.0,0.00053999,120]
[321213829,1711985445210,-382.33972984,0.00053999,120]
[321213830,1711985445219,-500.0,0.00053999,120]
[321213831,1711985445229,-500.0,0.00053999,120]
[321213832,1711985445238,-500.0,0.00053999,120]
[321213833,1711985445247,-12000.0,0.00053999,40]
[321213834,1711985445256,-30202.74412255,0.00053999,65]
[321213835,1711985445266,-280972.8053181,0.00054,2]
[321213836,1711985445275,-696.31096825,0.00054,30]
[321213837,1711985445284,-2432.60255453,0.00054,117]
[321213838,1711985445293,-8709.7,0.00054,117]
[321213839,1711985445302,-875.0,0.00054,10]
[321213840,1711985445311,-1753.0,0.00054,120]
[321213841,1711985445321,-1753.0,0.00054,120]
[321213842,1711985445330,-1753.0,0.00054,120]
[321213843,1711985445339,-1753.0,0.00054,120]
[321213844,1711985445348,-1753.0,0.00054,120]
[321213845,1711985445357,-1753.0,0.00054,120]
[321213846,1711985445367,-1753.0,0.00054,120]
[321213847,1711985445376,-1753.0,0.00054,120]
[321213848,1711985445385,-1753.0,0.00054,120]
[321213849,1711985445394,-1753.0,0.00054,120]
[321213850,1711985445404,-1000.0,0.00054246,120]
[321213851,1711985445413,-221.15,0.00054438,120]
[321213852,1711985445421,-500.0,0.00054489,120]
[321213853,1711985445430,-500.0,0.00054489,120]
[321213854,1711985445439,-500.0,0.00054489,120]
[321213855,1711985445448,-500.0,0.00054489,120]
[321213856,1711985445458,-500.0,0.00054489,120]
[321213857,1711985445467,-500.0,0.00054489,120]
[321213858,1711985445477,-232.04,0.00054489,120]
[321213859,1711985445486,-500.0,0.00054489,120]
[321213860,1711985445495,-152.61,0.00054489,120]
[321213861,1711985445504,-162.14,0.00054489,120]
[321213862,1711985445514,-500.0,0.00054489,120]
[321213863,1711985445523,-128260.44932904,0.0005449,10]
[321213864,1711985445533,-1005.1649,0.00054599,30]
[321213865,1711985445542,-1800.0,0.000546,19]
[321213866,1711985445551,-8431.75904709,0.00054621,2]
[321213867,1711985445561,-387.18093692,0.00054656,2]
[321213868,1711985445570,-2500.0,0.000547,19]
[321213869,1711985445580,-150.5,0.00054726,15]
[321213870,1711985445589,-150.5,0.00054736,15]
[321213871,1711985445599,-150.0,0.0005474,30]
[321213872,1711985445608,-150.5,0.00054746,15]
[321213873,1711985445617,-500.0,0.00054755,120]
[321213874,1711985445627,-500.0,0.00054755,120]
[321213875,1711985445636,-500.0,0.00054755,120]
[321213876,1711985445645,-500.0,0.00054755,120]
[321213877,1711985445658,-242.84295541,0.00054755,120]
[321213878,1711985445667,-3772.0,0.00054767,30]
[321213879,1711985445676,-5277.57637587,0.00054776,2]
[321213880,1711985445686,-500.0,0.00054794,4]
[321213881,1711985445696,-1000.0,0.00054794,120]
[321213882,1711985445705,-1000.0,0.00054794,120]
[321213883,1711985445714,-500.0,0.00054794,120]
[321213884,1711985445724,-500.0,0.00054794,120]
[321213885,1711985445733,-500.0,0.00054794,120]
[321213886,1711985445742,-516.50674671,0.00054794,120]
[321213887,1711985445752,-500.0,0.00054794,120]
[321213888,1711985445762,-500.0,0.00054794,120]
[321213889,1711985445771,-500.0,0.00054794,120]
[321213890,1711985445780,-500.0,0.00054794,120]
[321213891,1711985445790,-500.0,0.00054794,120]
[321213892,1711985445800,-500.0,0.00054794,120]
[321213893,1711985445809,-500.0,0.00054794,120]
[321213894,1711985445818,-500.0,0.00054794,120]
[321213895,1711985445828,-500.0,0.00054794,120]
[321213896,1711985445837,-501.14535128,0.00054794,120]
[321213897,1711985445846,-500.0,0.00054794,120]
[321213898,1711985445856,-527.28333537,0.00054794,120]
[321213899,1711985445865,-500.0,0.00054794,120]
[321213900,1711985445874,-500.0,0.00054794,120]
[321213901,1711985445883,-500.0,0.00054794,120]
[321213902,1711985445892,-500.0,0.00054794,120]
[321213903,1711985445904,-500.0,0.00054794,120]
[321213904,1711985445914,-500.0,0.00054794,120]
[321213905,1711985445923,-500.0,0.00054794,120]
[321213906,1711985445932,-500.0,0.00054794,120]
[321213907,1711985445942,-500.0,0.00054794,120]
[321213908,1711985445951,-500.0,0.00054794,120]
[321213909,1711985445961,-500.0,0.00054794,120]
[321213910,1711985445970,-471.67460782,0.00054794,120]
[321213911,1711985445981,-500.0,0.00054794,120]
[321213912,1711985445991,-500.0,0.00054794,120]
[321213913,1711985446000,-500.0,0.00054794,120]
[321213914,1711985446011,-500.0,0.00054794,120]
[321213915,1711985446020,-500.0,0.00054794,120]
[321213916,1711985446029,-500.0,0.00054794,120]
[321213917,1711985446039,-500.0,0.00054794,120]
[321213918,1711985446049,-500.0,0.00054794,120]
[321213920,1711985446059,-500.0,0.00054794,120]
[321213922,1711985446069,-500.0,0.00054794,120]
[321213923,1711985446078,-500.0,0.00054794,120]
[321213925,1711985446088,-500.0,0.00054794,120]
[321213927,1711985446097,-500.0,0.00054794,120]
[321213928,1711985446107,-500.0,0.00054794,120]
[321213929,1711985446116,-541.41551734,0.00054794,120]
[321213930,1711985446125,-500.0,0.00054794,120]
[321213931,1711985446135,-500.0,0.00054794,120]
[321213932,1711985446144,-274.84105108,0.00054794,120]
[321213933,1711985446156,-506.20700483,0.00054794,120]
[321213934,1711985446166,-509.27095537,0.00054794,120]
[321213935,1711985446175,-500.0,0.00054794,7]
[321213937,1711985446185,-500.0,0.00054794,120]
[321213938,1711985446194,-500.0,0.00054794,120]
[321213939,1711985446203,-500.0,0.00054794,120]
[321213940,1711985446212,-500.0,0.00054794,120]
[321213941,1711985446221,-500.0,0.00054794,120]
[321213942,1711985446230,-501.54514201,0.00054794,120]
[321213943,1711985446240,-500.0,0.00054794,120]
[321213944,1711985446250,-500.0,0.00054794,120]
[321213946,1711985446259,-508.64819303,0.00054794,120]
[321213948,1711985446269,-500.0,0.00054794,120]
[321213950,1711985446279,-500.0,0.00054794,120]
[321213953,1711985446288,-500.0,0.00054794,120]
[321213956,1711985446297,-500.0,0.00054794,120]
[321213958,1711985446307,-498.86063616,0.00054794,120]
[321213961,1711985446317,-500.0,0.00054794,120]
[321213963,1711985446326,-500.0,0.00054794,120]
[321213965,1711985446335,-500.0,0.00054794,120]
[321213966,1711985446344,-500.0,0.00054794,120]
[321213968,1711985446354,-500.0,0.00054794,120]
[321213970,1711985446363,-513.57415562,0.00054794,120]
[321213971,1711985446373,-512.50652288,0.00054794,120]
[321213973,1711985446384,-421.85255213,0.00054794,120]
[321213975,1711985446393,-500.0,0.00054794,120]
[321213976,1711985446406,-500.0,0.00054794,50]
[321213978,1711985446416,-500.0,0.00054794,120]
[321213980,1711985446426,-500.0,0.00054794,120]
[321213982,1711985446436,-500.0,0.00054794,120]
[321213984,1711985446446,-229.5517744,0.00054794,120]
[321213985,1711985446456,-514.52606124,0.00054794,120]
[321213986,1711985446466,-500.0,0.00054794,120]
[321213988,1711985446475,-500.0,0.00054794,120]
[321213989,1711985446485,-500.0,0.00054794,120]
[321213991,1711985446495,-500.0,0.00054794,120]
[321213993,1711985446504,-507.57465409,0.00054794,120]
[321213994,1711985446514,-500.0,0.00054794,120]
[321213996,1711985446524,-500.0,0.00054794,120]
[321213997,1711985446533,-500.0,0.00054794,120]
[321213999,1711985446543,-500.0,0.00054794,120]
[321214000,1711985446553,-500.0,0.00054794,120]
[321214002,1711985446564,-500.0,0.00054794,120]
[321214003,1711985446574,-500.0,0.00054794,120]
[321214005,1711985446584,-500.0,0.00054794,120]
[321214007,1711985446596,-500.0,0.00054794,120]
[321214009,1711985446608,-506.03821606,0.00054794,120]
[321214011,1711985446617,-500.0,0.00054794,120]
[321214012,1711985446627,-500.0,0.00054794,120]
[321214014,1711985446638,-500.0,0.00054794,120]
[321214016,1711985446649,-500.0,0.00054794,120]
[321214017,1711985446658,-500.0,0.00054794,120]
[321214018,1711985446668,-500.0,0.00054794,120]
[321214019,1711985446678,-500.0,0.00054794,120]
[321214020,1711985446689,-500.0,0.00054794,120]
[321214021,1711985446699,-509.91579098,0.00054794,120]
[321214022,1711985446708,-504.85630377,0.00054794,120]
[321214024,1711985446719,-500.0,0.00054794,120]
[321214026,1711985446728,-500.0,0.00054794,120]
[321214028,1711985446739,-506.59609766,0.00054794,120]
[321214030,1711985446749,-500.0,0.00054794,120]
[321214032,1711985446758,-500.0,0.00054794,120]
[321214034,1711985446768,-438.45981761,0.00054794,120]
[321214036,1711985446778,-500.0,0.00054794,120]
[321214038,1711985446788,-500.0,0.00054794,120]
[321214040,1711985446798,-425.38821459,0.00054794,120]
[321214042,1711985446807,-500.0,0.00054794,120]
[321214044,1711985446817,-500.0,0.00054794,120]
[321214046,1711985446828,-500.0,0.00054794,120]
[321214048,1711985446838,-576.97,0.00054794,120]
[321214050,1711985446848,-507.03095782,0.00054794,120]
[321214053,1711985446858,-500.0,0.00054794,120]
[321214055,1711985446867,-500.0,0.00054794,120]
[321214057,1711985446877,-500.0,0.00054794,120]
[321214059,1711985446887,-500.0,0.00054794,120]
[321214061,1711985446897,-500.0,0.00054794,120]
[321214063,1711985446908,-500.0,0.00054794,120]
[321214065,1711985446917,-515.47536293,0.00054794,120]
[321214067,1711985446926,-500.0,0.00054794,120]
[321214069,1711985446936,-500.0,0.00054794,120]
[321214070,1711985446946,-500.0,0.00054794,120]
[321214073,1711985446957,-500.0,0.00054794,120]
[321214074,1711985446970,-500.0,0.00054794,120]
[321214076,1711985446980,-500.0,0.00054794,120]
[321214078,1711985446990,-500.0,0.00054794,120]
[321214080,1711985447000,-500.0,0.00054794,120]
[321214082,1711985447010,-500.0,0.00054794,120]
[321214083,1711985447021,-500.0,0.00054794,120]
[321214084,1711985447030,-500.0,0.00054794,120]
[321214085,1711985447040,-500.0,0.00054794,120]
[321214086,1711985447050,-500.0,0.00054794,120]
[321214087,1711985447060,-500.0,0.00054794,120]
[321214088,1711985447071,-500.0,0.00054794,120]
[321214089,1711985447081,-515.42753356,0.00054794,120]
[321214090,1711985447090,-500.0,0.00054794,120]
[321214091,1711985447100,-1767.06,0.00054794,120]
[321214092,1711985447110,-500.0,0.00054794,120]
[321214093,1711985447121,-600.0,0.00054794,2]
[321214094,1711985447130,-500.0,0.00054794,120]
[321214095,1711985447140,-500.0,0.00054794,120]
[321214096,1711985447152,-299.85564914,0.00054794,120]
[321214097,1711985447164,-500.0,0.00054794,120]
[321214098,1711985447186,-500.0,0.00054794,120]
[321214099,1711985447209,-500.0,0.00054794,120]
[321214100,1711985447231,-500.0,0.00054794,120]
[321214101,1711985447253,-500.0,0.00054794,120]
[321214102,1711985447276,-500.0,0.00054794,120]
[321214103,1711985447300,-500.0,0.00054794,120]
[321214104,1711985447322,-500.0,0.00054794,120]
[321214105,1711985447345,-500.0,0.00054794,120]
[321214106,1711985447368,-500.0,0.00054794,120]
[321214107,1711985447379,-988.0,0.00054794,120]
[321214108,1711985447389,-200.12945774,0.00054794,120]
[321214109,1711985447399,-500.0,0.00054794,120]
[321214110,1711985447409,-500.0,0.00054794,120]
[321214111,1711985447419,-500.0,0.00054794,120]
[321214112,1711985447429,-500.0,0.00054794,120]
[321214113,1711985447439,-500.0,0.00054794,120]
[321214114,1711985447450,-500.0,0.00054794,120]
[321214115,1711985447459,-500.0,0.00054794,120]
[321214116,1711985447469,-500.0,0.00054794,120]
[321214117,1711985447479,-500.0,0.00054794,120]
[321214118,1711985447488,-500.0,0.00054794,120]
[321214119,1711985447498,-500.0,0.00054794,120]
[321214120,1711985447508,-500.0,0.00054794,120]
[321214121,1711985447517,-1836.12,0.00054794,120]
[321214122,1711985447528,-500.0,0.00054794,120]
[321214123,1711985447538,-447.2484764,0.00054794,120]
[321214124,1711985447548,-500.0,0.00054794,120]
[321214125,1711985447557,-500.0,0.00054794,120]
[321214126,1711985447567,-500.0,0.00054794,120]
[321214127,1711985447577,-500.0,0.00054794,120]
[321214128,1711985447586,-500.0,0.00054794,120]
[321214129,1711985447596,-500.0,0.00054794,120]
[321214130,1711985447605,-500.0,0.00054794,120]
[321214131,1711985447616,-500.0,0.00054794,120]
[321214132,1711985447626,-500.0,0.00054794,120]
[321214133,1711985447637,-500.0,0.00054794,120]
[321214134,1711985447647,-500.0,0.00054794,120]
[321214135,1711985447657,-500.0,0.00054794,120]
[321214136,1711985447667,-500.0,0.00054794,120]
[321214137,1711985447676,-500.0,0.00054794,120]
[321214138,1711985447686,-500.0,0.00054794,120]
[321214139,1711985447695,-500.0,0.00054794,120]
[321214140,1711985447704,-500.0,0.00054794,120]
[321214141,1711985447716,-500.0,0.00054794,120]
[321214142,1711985447726,-500.0,0.00054794,120]
[321214143,1711985447737,-500.0,0.00054794,120]
[321214144,1711985447747,-500.0,0.00054794,120]
[321214145,1711985447757,-500.0,0.00054794,120]
[321214146,1711985447766,-500.0,0.00054794,120]
[321214147,1711985447775,-500.0,0.00054794,120]
[321214148,1711985447785,-3000.0,0.00054794,120]
[321214149,1711985447795,-500.0,0.00054794,120]
[321214150,1711985447804,-500.0,0.00054794,120]
[321214151,1711985447985,-500.0,0.00054794,120]
[321214152,1711985447995,-500.0,0.00054794,120]
[321214153,1711985448005,-500.0,0.00054794,120]
[321214154,1711985448015,-979.76,0.00054794,120]
[321214155,1711985448024,-500.0,0.00054794,120]
[321214156,1711985448033,-500.0,0.00054794,120]
[321214157,1711985448043,-500.0,0.00054794,120]
[321214158,1711985448052,-511.6621212,0.00054794,120]
[321214159,1711985448065,-500.0,0.00054794,120]
[321214160,1711985448075,-500.0,0.00054794,120]
[321214161,1711985448085,-500.0,0.00054794,120]
[321214162,1711985448095,-500.0,0.00054794,120]
[321214163,1711985448104,-500.0,0.00054794,120]
[321214164,1711985448114,-500.0,0.00054794,120]
[321214165,1711985448123,-500.0,0.00054794,120]
[321214166,1711985448132,-500.0,0.00054794,120]
[321214167,1711985448141,-500.0,0.00054794,120]
[321214168,1711985448153,-500.0,0.00054794,120]
[321214169,1711985448163,-500.0,0.00054794,120]
[321214170,1711985448172,-500.0,0.00054794,120]
[321214171,1711985448182,-500.0,0.00054794,120]
[321214172,1711985448192,-500.0,0.00054794,120]
[321214173,1711985448201,-500.0,0.00054794,120]
[321214174,1711985448211,-500.0,0.00054794,120]
[321214175,1711985448220,-500.0,0.00054794,120]
[321214176,1711985448229,-500.0,0.00054794,120]
[321214177,1711985448238,-500.0,0.00054794,120]
[321214178,1711985448247,-500.0,0.00054794,120]
[321214179,1711985448257,-500.0,0.00054794,120]
[321214180,1711985448266,-500.0,0.00054794,120]
[321214181,1711985448275,-500.0,0.00054794,120]
[321214182,1711985448284,-500.0,0.00054794,120]
[321214183,1711985448294,-500.0,0.00054794,120]
[321214184,1711985448303,-500.0,0.00054794,120]
[321214185,1711985448312,-535.25,0.00054794,120]
[321214186,1711985448321,-500.0,0.00054794,120]
[321214187,1711985448330,-500.0,0.00054794,120]
[321214188,1711985448340,-500.0,0.00054794,120]
[321214189,1711985448350,-500.0,0.00054794,120]
[321214190,1711985448360,-500.0,0.00054794,120]
[321214191,1711985448370,-500.0,0.00054794,120]
[321214192,1711985448379,-500.0,0.00054794,120]
[321214193,1711985448389,-190.32,0.00054794,120]
[321214194,1711985448398,-500.0,0.00054794,120]
[321214195,1711985448409,-500.0,0.00054794,120]
[321214196,1711985448418,-500.0,0.00054794,120]
[321214197,1711985448428,-500.0,0.00054794,120]
[321214198,1711985448437,-500.0,0.00054794,120]
[321214199,1711985448447,-500.0,0.00054794,120]
[321214200,1711985448456,-500.42551673,0.00054794,120]
[321214201,1711985448466,-500.0,0.00054794,120]
[321214202,1711985448476,-500.0,0.00054794,120]
[321214203,1711985448486,-500.0,0.00054794,120]
[321214204,1711985448495,-500.0,0.00054794,120]
[321214205,1711985448504,-500.0,0.00054794,120]
[321214206,1711985448514,-500.0,0.00054794,120]
[321214207,1711985448524,-213.39,0.00054794,120]
[321214208,1711985448534,-500.0,0.00054794,120]
[321214209,1711985448544,-500.0,0.00054794,120]
[321214210,1711985448553,-500.0,0.00054794,120]
[321214211,1711985448563,-500.0,0.00054794,120]
[321214212,1711985448573,-500.0,0.00054794,120]
[321214213,1711985448582,-500.0,0.00054794,120]
[321214214,1711985448591,-500.0,0.00054794,120]
[321214215,1711985448601,-500.0,0.00054794,120]
[321214216,1711985448610,-500.0,0.00054794,120]
[321214217,1711985448619,-500.0,0.00054794,120]
[321214218,1711985448630,-500.0,0.00054794,120]
[321214219,1711985448640,-500.0,0.00054794,120]
[321214220,1711985448649,-500.0,0.00054794,120]
[321214221,1711985448661,-500.0,0.00054794,120]
[321214222,1711985448670,-500.0,0.00054794,120]
[321214223,1711985448679,-500.0,0.00054794,120]
[321214224,1711985448688,-500.0,0.00054794,120]
[321214225,1711985448697,-500.0,0.00054794,120]
[321214226,1711985448707,-500.0,0.00054794,120]
[321214227,1711985448718,-500.0,0.00054794,120]
[321214228,1711985448728,-500.0,0.00054794,120]
[321214229,1711985448739,-500.0,0.00054794,120]
[321214230,1711985448747,-500.0,0.00054794,120]
[321214231,1711985448757,-500.0,0.00054794,120]
[321214232,1711985448766,-500.0,0.00054794,120]
[321214233,1711985448775,-500.0,0.00054794,120]
[321214234,1711985448784,-500.0,0.00054794,120]
[321214235,1711985448793,-500.0,0.00054794,120]
[321214236,1711985448803,-500.0,0.00054794,120]
[321214237,1711985448813,-500.0,0.00054794,120]
[321214238,1711985448825,-500.0,0.00054794,120]
[321214239,1711985448836,-500.0,0.00054794,120]
[321214240,1711985448847,-500.0,0.00054794,120]
[321214241,1711985448856,-500.0,0.00054794,120]
[321214242,1711985448866,-500.0,0.00054794,120]
[321214243,1711985448876,-500.0,0.00054794,120]
[321214244,1711985448887,-500.0,0.00054794,120]
[321214245,1711985448898,-500.0,0.00054794,120]
[321214246,1711985448910,-500.0,0.00054794,21]
[321214247,1711985448921,-500.0,0.00054794,120]
[321214248,1711985448931,-500.0,0.00054794,120]
[321214249,1711985448940,-500.0,0.00054794,120]
[321214250,1711985448951,-500.0,0.00054794,120]
[321214251,1711985448962,-500.0,0.00054794,120]
[321214252,1711985448973,-500.0,0.00054794,120]
[321214253,1711985448984,-500.0,0.00054794,120]
[321214254,1711985448994,-500.0,0.00054794,120]
[321214255,1711985449003,-500.0,0.00054794,120]
[321214256,1711985449014,-500.0,0.00054794,120]
[321214257,1711985449023,-500.0,0.00054794,120]
[321214258,1711985449032,-500.0,0.00054794,120]
[321214259,1711985449041,-500.0,0.00054794,120]
[321214260,1711985449051,-500.0,0.00054794,120]
[321214261,1711985449063,-574.55,0.00054794,120]
[321214262,1711985449073,-500.0,0.00054794,120]
[321214263,1711985449083,-510.13640721,0.00054794,120]
[321214264,1711985449094,-482.48264337,0.00054794,120]
[321214265,1711985449104,-500.0,0.00054794,120]
[321214266,1711985449115,-500.0,0.00054794,120]
[321214267,1711985449124,-500.0,0.00054794,120]
[321214268,1711985449133,-500.0,0.00054794,120]
[321214269,1711985449143,-500.0,0.00054794,120]
[321214270,1711985449157,-500.0,0.00054794,120]
[321214271,1711985449166,-500.0,0.00054794,120]
[321214272,1711985449177,-500.0,0.00054794,120]
[321214273,1711985449187,-500.0,0.00054794,120]
[321214274,1711985449197,-500.0,0.00054794,120]
[321214275,1711985449208,-500.0,0.00054794,120]
[321214276,1711985449218,-450.79848742,0.00054794,120]
[321214277,1711985449227,-500.0,0.00054794,120]
[321214278,1711985449238,-500.0,0.00054794,120]
[321214279,1711985449248,-503.47630683,0.00054794,120]
[321214280,1711985449260,-500.0,0.00054794,120]
[321214281,1711985449269,-500.0,0.00054794,120]
[321214282,1711985449278,-500.0,0.00054794,120]
[321214283,1711985449290,-500.0,0.00054794,120]
[321214284,1711985449299,-500.0,0.00054794,120]
[321214285,1711985449309,-500.0,0.00054794,120]
[321214286,1711985449319,-500.0,0.00054794,120]
[321214287,1711985449329,-500.0,0.00054794,120]
[321214288,1711985449338,-166.57228408,0.00054794,120]
[321214289,1711985449348,-500.0,0.00054794,120]
[321214290,1711985449357,-500.0,0.00054794,120]
[321214291,1711985449368,-505.94441462,0.00054794,60]
[321214292,1711985449377,-500.0,0.00054794,120]
[321214293,1711985449386,-500.0,0.00054794,120]
[321214294,1711985449395,-500.0,0.00054794,120]
[321214295,1711985449408,-500.0,0.00054794,120]
[321214296,1711985449417,-503.856591,0.00054794,120]
[321214297,1711985449428,-500.0,0.00054794,120]
[321214298,1711985449438,-500.0,0.00054794,120]
[321214299,1711985449448,-500.0,0.00054794,120]
[321214300,1711985449459,-500.0,0.00054794,120]
[321214301,1711985449470,-500.0,0.00054794,120]
[321214302,1711985449480,-500.0,0.00054794,120]
[321214303,1711985449490,-500.0,0.00054794,120]